bitfinex/quotes_ETHUSD_20250721
["timestamp","ask_amount","ask_price","bid_price","bid_amount"]
[1753108753399,1.2215,3847.2,3846.9,2.59943915]
[1753108753597,1.2215,3847.2,3847.0,2.59941301]
[1753108753814,1.2215,3847.2,3847.0,2.72901301]
[1753108754303,1.2215,3847.2,3847.0,0.1296]
[1753108754901,0.4702,3847.1,3847.0,0.1296]
[1753108756327,0.4702,3847.1,3847.0,2.72902812]
[1753108756597,0.4702,3847.1,3847.0,0.1296]
[1753108756906,0.7513,3847.2,3847.0,0.1296]
[1753108757062,0.7513,3847.2,3847.0,2.72901638]
[1753108757266,1.2146,3847.2,3847.1,2.59936055]
[1753108757583,0.7513,3847.2,3847.1,2.59936055]
[1753108757919,0.7513,3847.2,3847.0,0.1296]
[1753108757920,0.7513,3847.2,3847.0,2.72901043]
[1753108758317,0.4633,3847.1,3847.0,0.1296]
[1753108758517,0.84469108,3847.1,3846.6,0.1296]
[1753108758715,1.2529,3847.0,3846.4,0.1296]
[1753108758880,2.59960845,3846.8,3846.1,2.60002079]
[1753108759080,0.7596,3846.6,3846.1,2.79643441]
[1753108759306,0.7596,3846.6,3846.2,2.59996385]
[1753108759622,0.4633,3846.5,3846.1,2.59999269]
[1753108759837,0.7596,3846.6,3846.2,2.59994869]
[1753108759977,0.4633,3846.4,3846.0,0.1296]
[1753108760476,3.35930961,3846.6,3846.0,0.32025186]
[1753108760477,0.7596,3846.6,3846.0,0.32025186]
[1753108760676,4.163,3847.1,3845.8,0.001]
[1753108760677,0.773,3846.1,3845.8,0.001]
[1753108761090,0.4633,3846.0,3845.8,0.001]
[1753108761339,0.792,3845.9,3845.8,0.001]
[1753108761497,3.39217161,3845.9,3845.8,0.001]
[1753108761699,3.85547161,3845.9,3845.8,0.001]
[1753108762012,0.8014,3846.1,3845.8,0.001]
[1753108762418,1.2647,3846.1,3845.8,0.001]
[1753108762579,0.8014,3846.1,3845.8,0.001]
[1753108762781,0.4633,3846.0,3845.8,2.60120937]
[1753108762983,4.9644,3846.5,3845.9,2.60017161]
[1753108763183,4.9644,3846.5,3846.1,0.1296]
[1753108763423,4.9644,3846.5,3845.8,0.001]
[1753108763424,0.4633,3846.4,3845.8,0.001]
[1753108763620,0.4633,3846.4,3845.9,0.1296]
[1753108763985,0.4633,3846.3,3845.9,0.1296]
[1753108764316,0.4633,3846.3,3846.0,2.60005965]
[1753108764520,4.9634,3846.5,3846.1,2.60003061]
[1753108764925,0.4633,3846.4,3845.9,0.1296]
[1753108765141,0.4633,3846.3,3845.9,2.72975461]
[1753108765355,4.9634,3846.5,3845.9,2.72975104]
[1753108765649,0.4633,3846.2,3845.9,2.72975104]
[1753108765843,0.4633,3846.1,3845.8,0.001]
[1753108766049,0.1296,3846.3,3845.8,0.001]
[1753108766547,0.5929,3846.3,3845.8,0.001]
[1753108766736,0.4633,3846.2,3845.8,0.001]
[1753108766931,0.1296,3846.3,3845.8,0.001]
[1753108767249,4.9634,3846.5,3846.0,2.60009804]
[1753108767444,0.4633,3846.4,3846.0,2.60009804]
[1753108767634,0.4633,3846.3,3845.9,0.1296]
[1753108767831,7.56317093,3846.5,3845.9,2.72976868]
[1753108768034,0.4633,3846.2,3846.0,2.60010026]
[1753108768843,0.4633,3846.2,3846.1,2.6000364]
[1753108769029,4.9624,3846.5,3845.9,0.1296]
[1753108769317,0.4633,3846.4,3845.9,0.1296]
[1753108769712,0.4633,3846.3,3845.9,0.1296]
[1753108769913,0.4633,3846.2,3845.9,0.1296]
[1753108770135,0.4633,3846.1,3845.9,0.1296]
[1753108770545,6.76083373,3846.4,3845.9,0.1296]
[1753108770722,3.06320196,3846.3,3845.9,0.1296]
[1753108770946,2.5999699,3846.2,3845.9,0.1296]
[1753108771116,3.0632699,3846.2,3845.9,0.1296]
[1753108771317,0.4633,3846.1,3845.9,0.1296]
[1753108771615,4.161,3846.4,3845.9,0.1296]
[1753108771926,4.16,3846.4,3846.0,2.60009889]
[1753108772115,4.6233,3846.4,3845.9,2.7297587]
[1753108772630,0.4633,3846.3,3845.9,0.1296]
[1753108773154,0.4633,3846.2,3845.9,2.72976512]
[1753108773854,0.4633,3846.2,3845.9,0.1296]
[1753108774160,0.4633,3846.2,3845.9,2.72975782]
[1753108774365,0.8014,3846.5,3845.9,0.1296]
[1753108774519,0.7529,3847.3,3846.8,2.59956327]
[1753108774720,0.84503465,3847.2,3846.8,2.59956327]
[1753108774918,0.4633,3847.2,3846.9,2.72909479]
[1753108775121,0.7529,3847.3,3847.2,2.59929299]
[1753108775424,0.002,3847.5,3847.1,0.1296]
[1753108775623,0.002,3847.5,3847.1,2.72894586]
[1753108775824,0.4633,3847.4,3847.1,2.72894586]
[1753108776025,0.002,3847.5,3847.2,2.59924283]
[1753108776227,0.002,3847.5,3847.1,0.1296]
[1753108776412,0.4633,3847.4,3847.1,2.72894067]
[1753108776812,0.002,3847.5,3847.1,2.72894067]
[1753108776813,0.4633,3847.3,3847.1,0.1296]
[1753108777249,0.002,3847.5,3847.1,0.1296]
[1753108777454,0.4633,3847.4,3847.1,0.1296]
[1753108777853,0.4633,3847.3,3847.1,0.1296]
[1753108778065,0.4633,3847.3,3847.2,2.59929299]
[1753108778269,0.4633,3847.3,3847.1,2.7299418]
[1753108778572,4.6223,3847.3,3847.1,2.7299418]
[1753108778868,4.6223,3847.3,3847.1,0.1306]
[1753108780128,3.86649299,3847.2,3847.1,0.001]
[1753108780333,8.02349299,3847.2,3847.1,0.001]
[1753108780534,8.09979299,3847.2,3847.1,0.001]
[1753108782978,3.94279299,3847.2,3847.1,0.001]
[1753108783282,8.09979299,3847.2,3847.1,0.001]
[1753108783575,10.72732692,3847.2,3847.1,0.001]
[1753108784373,10.72632692,3847.2,3847.1,0.001]
[1753108784530,10.72632692,3847.2,3847.1,1e-08]
[1753108784965,3.43063361,3846.4,3846.3,0.001]
[1753108785183,7.58663361,3846.4,3846.3,0.001]
[1753108785465,8.80859697,3846.4,3846.3,0.001]
[1753108787275,3.37137161,3845.9,3845.8,0.001]
[1753108787480,7.52737161,3845.9,3845.8,0.001]
[1753108787685,7.52737161,3845.9,3845.8,1e-08]
[1753108787890,9.01381757,3845.9,3845.8,1e-08]
[1753108788585,4.85781757,3845.9,3845.8,1e-08]
[1753108788784,9.01281757,3845.9,3845.8,1e-08]
[1753108789167,4.85781757,3845.9,3845.8,1e-08]
[1753108789498,15.25081757,3845.9,3845.8,1e-08]
[1753108790795,0.9548,3845.8,3844.5,2.57309934]
[1753108790965,2.60066586,3845.2,3844.5,2.57309934]
[1753108791287,2.60066586,3845.2,3844.4,0.1306]
[1753108791288,4.2846,3845.1,3844.4,0.1306]
[1753108791449,4.2846,3845.1,3844.5,2.6010741]
[1753108791643,4.2846,3845.1,3844.4,2.73176245]
[1753108791644,0.7641,3845.0,3844.4,2.73176245]
[1753108791860,4.155,3844.9,3844.4,2.73176245]
[1753108792058,4.155,3844.9,3844.4,0.1306]
[1753108792256,4.155,3844.9,3844.4,0.001]
[1753108792487,5.12061,3844.9,3844.4,0.001]
[1753108792676,0.1296,3844.6,3844.4,0.001]
[1753108792986,4.154,3844.5,3844.4,0.001]
[1753108793195,7.22881848,3844.5,3844.4,0.001]
[1753108793571,8.01741848,3844.5,3844.4,0.001]
[1753108793776,9.09221999,3844.5,3844.4,0.001]
[1753108794999,4.93821999,3844.5,3844.4,0.001]
[1753108795206,9.09221999,3844.5,3844.4,0.001]
[1753108796881,4.93821999,3844.5,3844.4,0.001]
[1753108797208,23.59221999,3844.5,3844.4,0.001]
[1753108797672,23.59221999,3844.5,3844.4,1e-08]
[1753108798081,2.60132147,3844.2,3844.1,1e-08]
[1753108798278,3.35782147,3844.2,3844.1,1e-08]
[1753108798605,7.98552147,3844.2,3844.1,1e-08]
[1753108798927,22.48552147,3844.2,3844.1,1e-08]
[1753108799258,3.35349833,3843.2,3843.1,1e-08]
[1753108799495,14.08184816,3843.2,3843.1,1e-08]
[1753108799792,14.55554816,3843.2,3843.1,1e-08]
[1753108800316,3.41223689,3842.7,3842.6,1e-08]
[1753108800469,17.91223689,3842.7,3842.6,1e-08]
[1753108800806,18.38593689,3842.7,3842.6,1e-08]
[1753108801004,30.87975572,3842.7,3842.6,1e-08]
[1753108801210,20.48475572,3842.7,3842.6,1e-08]
[1753108801362,30.87975572,3842.7,3842.6,1e-08]
[1753108801906,24.15323689,3842.7,3842.6,1e-08]
[1753108802112,8.03893689,3842.7,3842.6,1e-08]
[1753108802743,18.38593689,3842.7,3842.6,1e-08]
[1753108802948,22.53993689,3842.7,3842.6,1e-08]
[1753108803100,18.38593689,3842.7,3842.6,1e-08]
[1753108803450,10.66747082,3842.7,3842.6,1e-08]
[1753108803650,16.90847082,3842.7,3842.6,1e-08]
[1753108803853,6.75533689,3842.7,3842.6,1e-08]
[1753108804404,7.22903689,3842.7,3842.6,1e-08]
[1753108804608,2.60254007,3842.4,3842.3,1e-08]
[1753108804905,2.60254007,3842.4,3841.7,0.001]
[1753108804906,2.60281103,3842.0,3841.7,0.001]
[1753108805230,2.60281103,3842.0,3841.1,0.021]
[1753108805231,2.60314981,3841.5,3841.4,1e-08]
[1753108805403,3.42121757,3841.4,3841.1,0.021]
[1753108805756,8.04891757,3841.4,3841.3,1e-08]
[1753108806053,3.42135311,3841.2,3841.1,1e-08]
[1753108806254,2.60389542,3840.4,3840.3,1e-08]
[1753108806496,0.818,3840.1,3840.0,1e-08]
[1753108806752,22.07509885,3840.1,3840.0,1e-08]
[1753108806901,22.07509885,3840.1,3839.1,0.02]
[1753108806902,2.60457363,3839.4,3839.1,0.02]
[1753108807257,13.81957363,3839.4,3839.3,1e-08]
[1753108807552,24.16657363,3839.4,3839.3,1e-08]
[1753108807766,26.79410756,3839.4,3839.3,1e-08]
[1753108807920,0.818,3840.1,3839.3,1e-08]
[1753108808119,2.60456281,3839.5,3839.3,1e-08]
[1753108808303,6.75757363,3839.4,3839.3,1e-08]
[1753108808929,4.154,3839.4,3839.3,1e-08]
[1753108809108,0.1296,3839.5,3839.3,1e-08]
[1753108809306,2.60238078,3842.7,3839.3,1e-08]
[1753108809307,0.818,3840.5,3840.0,2.60415481]
[1753108809549,4.154,3840.4,3839.7,0.4711]
[1753108809751,0.1296,3840.1,3839.3,0.79700001]
[1753108810063,0.1296,3839.5,3839.3,1e-08]
[1753108810206,4.154,3839.4,3839.3,1e-08]
[1753108810406,7.92107367,3839.4,3839.3,1e-08]
[1753108810603,0.1296,3839.5,3839.3,1e-08]
[1753108810821,4.154,3839.4,3839.3,1e-08]
[1753108811108,7.23227363,3839.4,3839.3,1e-08]
[1753108811710,6.75757363,3839.4,3839.3,1e-08]
[1753108811919,4.153,3839.4,3839.3,1e-08]
[1753108812119,0.1296,3839.5,3839.3,1e-08]
[1753108812324,6.75757363,3839.4,3839.3,1e-08]
[1753108812533,3.38925737,3839.4,3839.3,1e-08]
[1753108812738,7.54325737,3839.4,3839.3,1e-08]
[1753108813334,3.38925737,3839.4,3839.3,1e-08]
[1753108813520,7.54325737,3839.4,3839.3,1e-08]
[1753108814137,3.38925737,3839.4,3839.3,1e-08]
[1753108814358,8.36125737,3839.4,3839.3,1e-08]
[1753108814659,4.20725737,3839.4,3839.3,1e-08]
[1753108814819,8.36225737,3839.4,3839.3,1e-08]
[1753108815215,2.60470931,3839.2,3839.1,1e-08]
[1753108815442,9.64139573,3839.2,3839.1,1e-08]
[1753108815642,10.11509573,3839.2,3839.1,1e-08]
[1753108816357,10.11509573,3839.2,3838.1,0.02]
[1753108816358,3.39238794,3838.2,3838.1,1e-08]
[1753108816590,13.79438794,3838.2,3838.1,1e-08]
[1753108816729,12.70242187,3838.2,3838.1,1e-08]
[1753108816928,31.35642187,3838.2,3838.1,1e-08]
[1753108817314,27.20242187,3838.2,3838.1,1e-08]
[1753108817769,31.35742187,3838.2,3838.1,1e-08]
[1753108818329,27.20242187,3838.2,3838.1,1e-08]
[1753108818527,31.35742187,3838.2,3838.1,1e-08]
[1753108820920,27.20242187,3838.2,3838.1,1e-08]
[1753108821122,31.35642187,3838.2,3838.1,1e-08]
[1753108821702,27.20242187,3838.2,3838.1,1e-08]
[1753108822201,31.35742187,3838.2,3838.1,1e-08]
[1753108822585,2.60593109,3837.4,3837.3,1e-08]
[1753108822793,3.95430882,3837.4,3837.3,1e-08]
[1753108823270,8.10930882,3837.4,3837.3,1e-08]
[1753108823473,3.95430882,3837.4,3837.3,1e-08]
[1753108823658,4.38880882,3837.4,3837.3,1e-08]
[1753108823859,8.10930882,3837.4,3837.3,1e-08]
[1753108824055,2.60593109,3837.4,3837.3,1e-08]
[1753108824562,7.19543109,3837.4,3837.3,1e-08]
[1753108825191,3.04043109,3837.4,3837.3,1e-08]
[1753108825507,2.60606692,3837.2,3837.1,1e-08]
[1753108825800,7.75417672,3837.2,3837.1,1e-08]
[1753108829804,8.18867672,3837.2,3837.1,1e-08]
[1753108830177,7.75417672,3837.2,3837.1,1e-08]
[1753108830375,8.96157672,3837.2,3837.1,1e-08]
[1753108831171,8.96057672,3837.2,3837.1,1e-08]
[1753108831366,23.46057672,3837.2,3837.1,1e-08]
[1753108832223,23.46057672,3837.2,3836.1,1e-08]
[1753108832224,3.37064625,3836.2,3836.1,1e-08]
[1753108832371,13.01474625,3836.2,3836.1,1e-08]
[1753108833108,8.86074625,3836.2,3836.1,1e-08]
[1753108833415,0.7639,3836.9,3836.1,0.43560001]
[1753108833593,4.155,3836.8,3836.2,0.8261]
[1753108833809,6.254,3837.0,3836.3,0.4356]
[1753108834115,4.154,3836.9,3836.3,0.4356]
[1753108834313,7.10409955,3837.0,3836.3,0.4356]
[1753108834500,2.60647492,3836.6,3836.3,0.4356]
[1753108834804,4.154,3836.5,3836.3,0.4356]
[1753108834965,4.154,3836.5,3836.2,0.8261]
[1753108835172,2.6066783,3836.3,3836.2,0.8261]
[1753108835508,6.7606783,3836.3,3836.2,0.8261]
[1753108836312,2.60674625,3836.2,3836.1,1e-08]
[1753108837370,6.76074625,3836.2,3836.1,1e-08]
[1753108838014,2.60674625,3836.2,3836.1,1e-08]
[1753108838170,6.76074625,3836.2,3836.1,1e-08]
[1753108839183,0.7941,3836.9,3836.1,1e-08]
[1753108839517,2.60668181,3836.3,3836.1,0.43560001]
[1753108839665,4.154,3836.2,3836.1,0.43560001]
[1753108839870,2.60668181,3836.3,3836.1,1e-08]
[1753108840172,4.154,3836.2,3836.1,1e-08]
[1753108840451,2.60648084,3836.6,3836.2,0.4356]
[1753108840718,4.154,3836.5,3836.3,0.7808]
[1753108841007,4.153,3836.4,3836.3,0.7808]
[1753108841610,6.254,3837.0,3836.3,0.4356]
[1753108841826,4.153,3836.9,3836.5,2.60653605]
[1753108841990,4.153,3836.9,3836.7,2.60636686]
[1753108842187,0.7518,3837.8,3836.1,1e-08]
[1753108842188,0.7518,3838.1,3836.8,1.2164]
[1753108842401,0.1296,3837.3,3836.9,2.60626424]
[1753108842621,0.1296,3837.3,3836.8,0.7808]
[1753108842819,4.153,3837.2,3837.1,3.38693484]
[1753108843122,4.153,3837.2,3837.1,3.82253484]
[1753108843415,4.153,3837.2,3837.1,1.2164]
[1753108843822,0.1296,3837.5,3837.1,3.82253484]
[1753108844121,4.022731,3837.4,3837.3,0.7808]
[1753108844324,0.1296,3837.7,3837.3,0.7808]
[1753108844526,0.002,3837.4,3837.3,3.38679594]
[1753108845112,0.002,3837.4,3837.3,3.82239594]
[1753108845586,0.002,3837.4,3837.3,3.89395593]
[1753108845820,0.002,3837.4,3837.3,4.02355593]
[1753108846723,0.002,3837.4,3837.3,0.8263]
[1753108847049,0.002,3837.4,3837.3,1.281]
[1753108847546,0.002,3837.4,3837.3,3.886999]
[1753108848112,0.002,3837.4,3837.3,1.281]
[1753108848316,0.002,3837.4,3837.3,3.886999]
[1753108849216,0.002,3837.4,3837.3,3.91305899]
[1753108849828,0.002,3837.4,3837.3,3.886999]
[1753108850351,0.002,3837.4,3837.3,3.91305899]
[1753108851223,0.002,3837.4,3837.3,3.886999]
[1753108854031,0.002,3837.4,3837.3,0.8263]
[1753108854251,0.002,3837.4,3837.3,3.432299]
[1753108854576,0.002,3837.4,3837.3,1.281]
[1753108854867,0.002,3837.4,3837.3,0.8263]
[1753108855478,0.002,3837.4,3837.3,1.281]
[1753108857373,0.002,3837.4,3837.3,0.8263]
[1753108857558,0.002,3837.4,3837.0,0.8817]
[1753108857759,0.002,3837.4,3837.0,0.1296]
[1753108858164,2.60611673,3837.2,3837.0,0.1296]
[1753108858476,2.60613966,3837.1,3836.6,1.2619]
[1753108858770,2.73580276,3837.0,3836.6,0.8072]
[1753108858989,2.60631681,3836.9,3836.6,0.8072]
[1753108859141,2.73580798,3837.0,3836.6,0.8072]
[1753108859678,2.60631786,3836.9,3836.6,0.8072]
[1753108859990,2.60627068,3836.9,3836.4,0.1296]
[1753108860151,0.32573317,3836.8,3836.4,2.73616792]
[1753108860496,0.1296,3837.0,3836.4,0.1296]
[1753108860692,2.60627068,3836.9,3836.4,0.1296]
[1753108860854,0.1296,3837.0,3836.6,2.60642895]
[1753108861195,0.002,3837.4,3837.3,2.605999]
[1753108861354,0.002,3837.4,3837.3,0.4547]
[1753108861687,0.002,3837.4,3837.3,3.842399]
[1753108862249,0.002,3837.4,3837.3,1.2364]
[1753108862665,0.002,3837.4,3837.3,3.842399]
[1753108862868,0.002,3837.4,3837.3,3.86845899]
[1753108864753,0.002,3837.4,3837.3,8.01545899]
[1753108864987,0.002,3837.4,3837.3,7.989399]
[1753108865367,0.002,3837.4,3837.3,1.2364]
[1753108865551,0.002,3837.4,3837.3,5.3834]
[1753108865758,0.002,3837.4,3837.3,7.989399]
[1753108866276,0.002,3837.4,3837.3,1.2364]
[1753108866600,0.002,3837.4,3837.3,7.988399]
[1753108867393,0.002,3837.4,3837.3,1.2364]
[1753108868096,0.002,3837.4,3837.3,3.842399]
[1753108868512,0.002,3837.4,3837.3,7.988399]
[1753108868879,0.002,3837.4,3837.3,5.3824]
[1753108869507,0.002,3837.4,3837.3,0.7817]
[1753108869663,0.002,3837.4,3837.3,4.9277]
[1753108869867,0.002,3837.4,3837.3,0.7817]
[1753108870181,0.002,3837.4,3837.3,1.2364]
[1753108870576,0.002,3837.4,3837.3,3.842399]
[1753108870981,0.002,3837.4,3837.3,3.971999]
[1753108871200,0.002,3837.4,3837.3,8.116999]
[1753108871904,0.002,3837.4,3837.3,5.0563]
[1753108872201,0.002,3837.4,3837.3,8.116999]
[1753108872376,0.002,3837.4,3837.3,3.971999]
[1753108872578,0.002,3837.4,3837.3,8.116999]
[1753108872786,0.002,3837.4,3837.3,3.971999]
[1753108872989,0.002,3837.4,3837.3,8.14305899]
[1753108873297,0.002,3837.4,3837.3,3.971999]
[1753108873483,0.002,3837.4,3837.3,8.14305899]
[1753108873688,0.002,3837.4,3837.3,8.116999]
[1753108874364,1e-08,3837.4,3837.3,8.116999]
[1753108877707,0.002,3838.2,3838.1,2.60545582]
[1753108877861,0.002,3838.2,3838.1,7.53275582]
[1753108878093,0.002,3838.2,3838.1,8.09605582]
[1753108881403,0.002,3838.2,3838.1,3.95305582]
[1753108881599,0.002,3838.2,3838.1,8.12111037]
[1753108881879,0.002,3838.2,3838.1,8.09505582]
[1753108882137,0.02,3838.9,3838.8,2.60498072]
[1753108882298,0.02,3838.9,3838.8,17.99387822]
[1753108882500,0.02,3838.9,3838.8,18.42757822]
[1753108882852,0.02,3838.9,3838.8,18.42657822]
[1753108883843,0.02,3838.9,3838.8,6.87558072]
[1753108884226,0.02,3838.9,3838.8,7.30928072]
[1753108884448,0.02,3838.9,3838.8,4.2706]
[1753108884645,0.4787,3838.9,3838.8,0.1296]
[1753108884862,0.4787,3838.9,3838.8,4.2696]
[1753108885438,0.02,3838.9,3838.8,4.2696]
[1753108885653,0.02,3838.9,3838.8,6.87458072]
[1753108886042,0.02,3838.9,3838.8,4.2696]
[1753108886241,0.02,3838.9,3838.8,6.87458072]
[1753108886763,0.02,3838.9,3838.8,18.46437822]
[1753108887470,0.02,3839.9,3839.7,0.8071]
[1753108887669,0.02,3839.9,3839.8,6.77034532]
[1753108887969,0.02,3839.9,3839.8,3.1676023]
[1753108888263,0.02,3839.9,3839.8,7.33264532]
[1753108888567,0.02,3839.9,3839.8,7.43329795]
[1753108889340,0.02,3839.9,3839.8,8.24039795]
[1753108890767,0.02,3840.9,3840.8,2.60362424]
[1753108890969,0.02,3840.9,3840.8,6.74162424]
[1753108891272,0.02,3840.9,3840.8,2.73322424]
[1753108891571,0.02,3840.9,3840.8,4.2676]
[1753108891779,0.4787,3840.9,3840.0,3.38570432]
[1753108892070,0.4787,3840.9,3840.5,0.1296]
[1753108892234,0.02,3840.9,3840.6,4.138]
[1753108892430,0.4587,3840.8,3840.5,0.1296]
[1753108892630,0.4587,3840.7,3840.6,4.138]
[1753108892857,0.4587,3840.7,3840.5,0.1296]
[1753108893056,0.02,3840.9,3840.5,4.2676]
[1753108893260,0.4587,3840.6,3840.5,4.2676]
[1753108893631,0.4587,3840.6,3840.5,4.137]
[1753108894779,0.02,3840.9,3840.5,6.74082762]
[1753108894965,0.02,3840.9,3840.6,2.60369605]
[1753108895168,0.4787,3840.9,3840.5,4.137]
[1753108895347,0.4787,3840.9,3840.7,2.60362676]
[1753108895669,0.4787,3840.9,3840.7,2.73322676]
[1753108895981,0.02,3840.9,3840.8,6.73962424]
[1753108896565,0.02,3840.9,3840.8,2.60362424]
[1753108896765,0.02,3840.9,3840.8,6.73962424]
[1753108898876,0.4787,3840.9,3840.7,0.1296]
[1753108899395,0.4587,3840.8,3840.7,0.1296]
[1753108899605,0.4587,3840.8,3840.7,4.2646]
[1753108900127,1.2512,3840.8,3840.7,0.1296]
[1753108900928,0.02,3840.9,3840.7,0.1296]
[1753108901739,0.02,3840.9,3840.8,6.73762424]
[1753108901937,0.02,3840.9,3840.8,7.19736048]
[1753108902236,0.02,3840.9,3840.8,7.17132424]
[1753108902387,0.02,3840.9,3840.8,6.73762424]
[1753108902592,0.02,3840.9,3840.8,17.09592174]
[1753108902833,0.02,3840.9,3840.8,17.52962174]
[1753108903193,0.02,3841.9,3841.8,2.60294653]
[1753108903391,0.02,3841.9,3841.8,6.89257599]
[1753108903628,0.02,3841.9,3841.8,6.86654653]
[1753108904144,0.1296,3842.8,3842.3,2.60257433]
[1753108904286,1.2814,3844.3,3842.3,12.98693041]
[1753108904287,0.4587,3843.3,3842.3,12.98693041]
[1753108904486,0.8207,3843.4,3842.4,4.133]
[1753108904796,0.4587,3843.0,3842.5,4.133]
[1753108904995,1.2794,3843.4,3842.8,2.60226917]
[1753108905225,3.42256966,3843.4,3842.6,0.02602404]
[1753108905398,0.4587,3842.8,3842.6,4.133]
[1753108905592,2.60193246,3843.3,3842.6,4.133]
[1753108905817,0.8207,3843.4,3842.6,4.133]
[1753108905818,0.4587,3842.7,3842.6,4.133]
[1753108906026,0.4587,3842.7,3842.5,4.133]
[1753108906730,0.4587,3842.7,3842.3,2.60259137]
[1753108906930,0.4587,3842.7,3842.3,6.73459137]
[1753108907139,0.4587,3842.7,3842.3,4.132]
[1753108907510,0.4394,3843.2,3842.3,4.132]
[1753108907716,0.4394,3843.2,3842.4,0.0260254]
[1753108908045,0.4394,3843.3,3842.5,4.132]
[1753108908343,0.4394,3843.3,3842.7,2.60228336]
[1753108908708,0.4394,3843.3,3842.8,2.60226917]
[1753108908914,0.4394,3843.3,3842.7,0.02602336]
[1753108909114,0.4394,3843.3,3842.8,2.60226917]
[1753108909937,0.8207,3843.4,3842.8,2.60226917]
[1753108910501,0.022,3842.9,3842.7,0.02602336]
[1753108910700,0.022,3842.9,3842.8,6.73226917]
[1753108910898,0.022,3842.9,3842.2,2.60266445]
[1753108911112,0.022,3842.9,3842.1,0.7709]
[1753108911113,0.4394,3842.8,3842.1,2.60269292]
[1753108911338,0.4394,3842.8,3842.2,4.13]
[1753108911541,0.4394,3842.8,3842.2,6.75868756]
[1753108911700,0.4394,3842.8,3842.3,2.60260029]
[1753108911898,0.4394,3842.8,3842.2,6.75868695]
[1753108912110,0.4394,3842.8,3842.3,2.60260654]
[1753108912371,0.74575408,3842.8,3842.5,2.60242447]
[1753108912517,0.4394,3842.8,3842.5,2.60242447]
[1753108912712,0.4394,3842.8,3842.4,6.73253778]
[1753108912921,0.022,3842.9,3842.4,4.13]
[1753108913113,0.4614,3842.9,3842.4,4.13]
[1753108913315,0.022,3842.9,3842.5,0.02602472]
[1753108913535,0.022,3842.9,3842.6,2.60234053]
[1753108913734,0.4394,3842.8,3842.0,0.66188774]
[1753108914049,0.4394,3842.8,3842.1,4.13]
[1753108914240,0.4394,3842.8,3842.5,0.1296]
[1753108914438,0.4394,3842.8,3842.5,2.73202367]
[1753108914646,0.022,3842.9,3842.5,0.1296]
[1753108914843,0.4394,3842.8,3842.5,0.1296]
[1753108915030,0.022,3842.9,3842.6,0.02602404]
[1753108915234,0.022,3842.9,3842.3,4.129]
[1753108915436,0.4394,3842.8,3842.5,0.1296]
[1753108915845,0.4394,3842.8,3842.5,2.73206175]
[1753108916033,0.022,3842.9,3842.5,0.1296]
[1753108916249,0.4394,3842.7,3842.5,0.1296]
[1753108918127,0.4394,3842.7,3842.1,4.129]
[1753108918128,0.4394,3842.6,3842.1,4.129]
[1753108918463,0.022,3842.9,3842.6,0.1296]
[1753108918624,0.4394,3842.8,3842.6,0.1296]
[1753108918962,0.4394,3842.7,3842.4,0.1296]
[1753108919260,0.4394,3842.7,3842.4,2.73212934]
[1753108919677,0.4394,3842.7,3842.5,2.60247048]
[1753108919881,0.022,3842.9,3842.8,2.60226917]
[1753108920083,0.022,3842.9,3842.8,0.1296]
[1753108920388,0.022,3842.9,3842.4,2.60254007]
[1753108920680,0.8321,3842.7,3841.2,0.7826]
[1753108920864,0.8321,3841.9,3840.9,0.7826]
[1753108921065,0.8321,3841.9,3841.0,2.60347431]
[1753108921066,2.60310256,3841.6,3841.0,2.60347431]
[1753108921281,0.4394,3841.5,3841.0,0.1296]
[1753108921577,0.4394,3841.5,3841.1,2.60338776]
[1753108921781,0.4394,3841.5,3841.0,0.1296]
[1753108921782,0.4394,3841.5,3841.0,0.32616235]
[1753108921942,0.4394,3841.4,3841.0,0.32616235]
[1753108922447,0.4394,3841.4,3841.0,2.73308402]
[1753108922697,0.1296,3841.7,3841.1,2.60339619]
[1753108922871,1.18574715,3841.7,3841.0,0.1296]
[1753108923198,0.8321,3841.9,3841.1,0.0260342]
[1753108923364,0.1296,3842.0,3841.5,2.60314981]
[1753108923762,0.7504,3842.3,3841.8,2.60292058]
[1753108923967,0.88,3842.3,3841.9,2.60286782]
[1753108924265,0.7504,3842.3,3842.0,2.73240948]
[1753108924666,0.7504,3842.3,3842.0,2.73240725]
[1753108924976,0.7504,3842.3,3842.0,0.1296]
[1753108925185,1.1898,3842.3,3842.0,0.1296]
[1753108925486,0.7504,3842.3,3842.0,2.73239652]
[1753108925685,0.7504,3842.3,3842.0,0.1296]
[1753108925896,5.5019,3842.6,3842.1,2.60274097]
[1753108926055,0.9355,3842.6,3842.5,2.60247234]
[1753108926259,0.022,3842.9,3842.8,2.60226917]
[1753108927086,0.022,3842.9,3842.8,2.73186917]
[1753108929166,0.022,3842.9,3842.8,0.1296]
[1753108929492,0.4614,3842.9,3842.8,0.1296]
[1753108929694,0.4614,3842.9,3842.8,2.73186917]
[1753108930106,0.022,3842.9,3842.8,0.1296]
[1753108930611,0.4614,3842.9,3842.8,0.1296]
[1753108931262,1.2572,3842.9,3842.8,0.1296]
[1753108931602,1.2572,3842.9,3842.5,2.60246428]
[1753108931603,1.3868,3842.9,3842.5,2.60246428]
[1753108931907,0.4394,3842.8,3842.3,0.1296]
[1753108932106,0.9474,3842.9,3842.4,2.60253378]
[1753108932279,0.9474,3842.9,3842.5,2.60245582]
[1753108932480,0.022,3842.9,3842.1,0.001]
[1753108932794,0.022,3842.9,3842.7,2.73191129]
[1753108932994,0.022,3842.9,3842.8,2.60226917]
[1753108933584,0.022,3842.9,3842.7,2.73192251]